bitfinex/quotes_BTCUSD_20220304
["timestamp","ask_amount","ask_price","bid_price","bid_amount"]
[1646364158524,0.27485372,41385.0,41379.0,0.15688543]
[1646364159019,0.20824754,41386.0,41379.0,0.15688543]
[1646364159220,0.12957872,41387.0,41379.0,0.15688543]
[1646364159419,0.21005229,41388.0,41379.0,0.15688543]
[1646364160268,0.00809707,41389.0,41379.0,0.15688543]
[1646364161271,0.24304724,41388.0,41379.0,0.15688543]
[1646364162270,0.45218258,41388.0,41379.0,0.15688543]
[1646364162471,0.3,41387.0,41379.0,0.15688543]
[1646364162874,0.45218258,41388.0,41379.0,0.15688543]
[1646364163071,0.24304724,41388.0,41379.0,0.15688543]
[1646364163471,0.24304724,41388.0,41379.0,0.42161728]
[1646364164121,0.16345197,41387.0,41380.0,0.367522]
[1646364164320,0.00809707,41389.0,41379.0,0.42161728]
[1646364164522,0.00809707,41389.0,41380.0,0.367522]
[1646364164922,0.00809707,41389.0,41379.0,0.42161728]
[1646364165322,0.29284072,41389.0,41379.0,0.42161728]
[1646364165524,0.29284072,41389.0,41380.0,0.367522]
[1646364166730,0.00809707,41389.0,41386.0,0.17618082]
[1646364168980,0.00809707,41389.0,41387.0,0.36743155]
[1646364170772,0.00809707,41389.0,41387.0,0.36243155]
[1646364180623,0.00809707,41389.0,41388.0,0.1]
[1646364180825,0.00809707,41389.0,41388.0,0.467522]
[1646364181827,0.00777276,41389.0,41388.0,0.367522]
[1646364184372,0.31715102,41401.0,41390.0,0.367487]
[1646364184373,0.12957872,41401.0,41390.0,0.367487]
[1646364184870,0.198,41402.0,41391.0,0.367487]
[1646364185369,0.18462964,41402.0,41395.0,0.23641931]
[1646364185570,0.18462964,41402.0,41394.0,0.16689905]
[1646364186827,0.24648833,41397.0,41395.0,0.367487]
[1646364187526,0.31420836,41402.0,41394.0,0.16689905]
[1646364187527,0.18462964,41402.0,41394.0,0.16689905]
[1646364187927,0.3,41401.0,41387.0,0.1]
[1646364188126,0.3,41401.0,41386.0,0.1]
[1646364188325,0.3,41401.0,41383.0,0.12413]
[1646364188525,0.07136681,41397.0,41383.0,0.12413]
[1646364188725,0.3,41396.0,41384.0,0.367487]
[1646364188926,0.25129374,41392.0,41386.0,0.367487]
[1646364189328,0.3,41394.0,41386.0,0.367487]
[1646364189625,0.3,41402.0,41385.0,0.20384362]
[1646364189826,0.06944247,41397.0,41385.0,0.20384362]
[1646364190025,0.3,41396.0,41386.0,0.367487]
[1646364190273,0.20116687,41395.0,41388.0,0.20971427]
[1646364190474,0.20116687,41395.0,41385.0,0.20384362]
[1646364190674,0.1156,41404.0,41386.0,0.41533068]
[1646364190874,0.1156,41404.0,41388.0,0.367487]
[1646364191085,0.42957872,41407.0,41396.0,0.15]
[1646364191086,0.12957872,41407.0,41396.0,0.15]
[1646364191281,0.05,41411.0,41397.0,1.67404657]
[1646364191282,0.06708261,41405.0,41397.0,1.67404657]
[1646364191484,0.9,41420.0,41399.0,0.367487]
[1646364191485,0.28887252,41406.0,41399.0,0.367487]
[1646364191680,0.18105609,41401.0,41400.0,0.0482]
[1646364192080,0.18105609,41401.0,41389.0,0.5139]
[1646364192277,0.18105609,41401.0,41394.0,0.0482]
[1646364192478,0.18105609,41401.0,41395.0,0.367487]
[1646364192675,0.18105609,41401.0,41397.0,0.367487]
[1646364192876,0.07196436,41403.0,41396.0,0.16116466]
[1646364193077,0.07196436,41403.0,41397.0,0.367487]
[1646364193480,0.21836253,41399.0,41392.0,0.2773602]
[1646364193680,0.21836253,41399.0,41389.0,0.3]
[1646364193878,0.21836253,41399.0,41389.0,0.367487]
[1646364194130,0.21836253,41399.0,41389.0,0.667487]
[1646364194331,0.1859327,41398.0,41391.0,0.367487]
[1646364194534,0.40223778,41399.0,41391.0,0.367487]
[1646364194730,0.18387525,41399.0,41392.0,0.20500622]
[1646364195129,0.18379587,41399.0,41392.0,0.20500622]
[1646364195330,0.18379587,41399.0,41393.0,0.367487]
[1646364195834,0.07085792,41395.0,41385.0,0.367487]
[1646364196031,0.18379587,41399.0,41385.0,0.667487]
[1646364196232,0.18379587,41399.0,41387.0,0.367487]
[1646364196431,0.18379587,41399.0,41389.0,0.367487]
[1646364196632,0.2745348,41397.0,41391.0,0.22190304]
[1646364196832,0.18379587,41399.0,41392.0,0.367487]
[1646364198284,0.1709,41405.0,41392.0,0.367487]
[1646364198485,0.1209,41405.0,41392.0,0.367487]
[1646364199287,0.24489151,41401.0,41392.0,0.367487]
[1646364199486,0.21261124,41404.0,41398.0,0.367487]
[1646364199884,0.21261124,41404.0,41388.0,0.02413]
[1646364200087,0.21261124,41404.0,41389.0,0.367487]
[1646364200289,0.21261124,41404.0,41391.0,0.367487]
[1646364200688,0.21261124,41404.0,41396.0,0.20500011]
[1646364200889,0.1152,41410.0,41397.0,0.667487]
[1646364201292,0.1152,41410.0,41399.0,0.367487]
[1646364201525,0.1152,41410.0,41403.0,0.23968597]
[1646364201526,0.39320245,41410.0,41403.0,0.23968597]
[1646364201726,0.6905,41414.0,41404.0,0.367487]
[1646364201727,0.06803861,41412.0,41404.0,0.367487]
[1646364201924,0.2032075,41411.0,41404.0,0.367487]
[1646364202523,0.19043456,41410.0,41404.0,0.367487]
[1646364202925,0.27944599,41409.0,41404.0,0.367487]
[1646364203529,0.2032075,41411.0,41404.0,0.367487]
[1646364204127,0.2032075,41411.0,41398.0,0.1]
[1646364204328,0.2032075,41411.0,41399.0,0.367487]
[1646364204727,0.27977177,41406.0,41401.0,0.367487]
[1646364205128,0.19295864,41404.0,41401.0,0.367487]
[1646364206674,0.19295864,41404.0,41395.0,0.27970535]
[1646364206873,0.19295864,41404.0,41396.0,0.367487]
[1646364209623,0.19295864,41404.0,41398.0,0.367487]
[1646364210223,0.25385072,41404.0,41398.0,0.367487]
[1646364211826,0.19295864,41404.0,41398.0,0.36611541]
[1646364212028,0.0482,41408.0,41398.0,0.57080119]
[1646364212230,0.1689,41413.0,41398.0,0.57080119]
[1646364212631,0.2789328,41410.0,41404.0,0.26823808]
[1646364212879,0.0639982,41411.0,41399.0,0.1]
[1646364213076,0.1189,41413.0,41405.0,0.15455665]
[1646364213574,0.21086112,41414.0,41405.0,0.15455665]
[1646364213776,0.41423085,41414.0,41405.0,0.15455665]
[1646364214178,0.1978987,41413.0,41406.0,0.367347]
[1646364215183,0.41423085,41414.0,41406.0,0.367347]
[1646364215378,0.20336973,41414.0,41406.0,0.367347]
[1646364215782,0.1224,41418.0,41406.0,0.367347]
[1646364216181,0.20218111,41416.0,41406.0,0.367347]
[1646364217029,0.20592104,41412.0,41406.0,0.367347]
[1646364218832,0.15896181,41410.0,41406.0,0.367347]
[1646364219134,0.15896181,41410.0,41398.0,0.1162]
[1646364219332,0.15896181,41410.0,41399.0,0.367347]
[1646364219834,0.15896181,41410.0,41401.0,0.367347]
[1646364220282,0.15799197,41410.0,41401.0,0.367347]
[1646364225635,0.3,41416.0,41401.0,0.367347]
[1646364226530,0.28476398,41414.0,41401.0,0.367347]
[1646364226731,0.3,41416.0,41409.0,0.18138315]
[1646364226931,0.3365284,41418.0,41409.0,0.17138315]
[1646364227529,0.3,41417.0,41409.0,0.17138315]
[1646364228084,0.49620942,41417.0,41409.0,0.17138315]
[1646364228287,0.3,41417.0,41409.0,0.17138315]
[1646364228681,0.25566164,41416.0,41409.0,0.17138315]
[1646364228883,0.1224,41418.0,41410.0,0.367347]
[1646364229084,0.4,41420.0,41410.0,0.367347]
[1646364229481,0.4,41420.0,41410.0,0.867347]
[1646364229881,0.22712472,41418.0,41410.0,1.167347]
[1646364230082,0.22712472,41418.0,41410.0,0.867347]
[1646364231825,0.4,41420.0,41410.0,1.167347]
[1646364232026,0.4,41420.0,41410.0,0.867347]
[1646364232624,0.58404169,41420.0,41410.0,0.867347]
[1646364232824,0.26760924,41416.0,41410.0,0.867347]
[1646364233627,0.18702372,41414.0,41410.0,0.867347]
[1646364234628,0.26760924,41416.0,41410.0,0.867347]
[1646364235277,0.58404169,41420.0,41410.0,0.867347]
[1646364235478,0.4,41420.0,41410.0,0.867347]
[1646364235679,0.1916,41421.0,41411.0,0.3]
[1646364235882,0.1916,41421.0,41412.0,0.367347]
[1646364236281,0.1916,41421.0,41415.0,0.21323371]
[1646364236482,0.1916,41421.0,41416.0,0.367347]
[1646364236779,0.16622334,41425.0,41416.0,0.54092773]
[1646364237180,0.3768,41427.0,41417.0,0.367347]
[1646364237381,0.3768,41427.0,41419.0,0.367347]
[1646364237581,0.24718439,41426.0,41419.0,0.65072119]
[1646364237784,0.119,41429.0,41419.0,0.65072119]
[1646364237982,0.119,41429.0,41421.0,0.367347]
[1646364238184,0.64260094,41432.0,41424.0,0.367347]
[1646364238482,0.23090752,41436.0,41424.0,0.367347]
[1646364238483,0.1939,41436.0,41424.0,0.367347]
[1646364238687,0.20908762,41432.0,41424.0,0.367347]
[1646364238883,0.187,41435.0,41424.0,0.367347]
[1646364239139,0.1939,41436.0,41424.0,0.367347]
[1646364239339,0.16734077,41433.0,41424.0,0.367347]
[1646364239941,0.22037675,41436.0,41426.0,0.367347]
[1646364240141,0.05,41441.0,41426.0,0.367347]
[1646364240340,0.1147,41445.0,41428.0,0.367347]
[1646364240540,0.1147,41445.0,41430.0,0.367347]
[1646364240740,0.1147,41445.0,41432.0,0.367347]
[1646364240940,0.16070209,41442.0,41432.0,0.667347]
[1646364241138,0.2129258,41440.0,41434.0,0.367347]
[1646364241343,0.1147,41445.0,41434.0,0.367347]
[1646364241541,0.1147,41445.0,41433.0,0.24383528]
[1646364241739,0.1147,41445.0,41435.0,0.5]
[1646364242038,0.18290866,41441.0,41436.0,0.367347]
[1646364242239,0.21435967,41439.0,41436.0,0.367347]
[1646364242640,0.21435967,41439.0,41437.0,0.367347]
[1646364242876,0.21435967,41439.0,41436.0,0.367347]
[1646364243079,0.21435967,41439.0,41435.0,0.5]
[1646364243278,0.26171914,41438.0,41435.0,0.5]
[1646364244978,0.26171914,41438.0,41432.0,0.71425823]
[1646364245178,0.18290866,41441.0,41434.0,0.367347]
[1646364245380,0.18290866,41441.0,41432.0,0.5]
[1646364245578,0.1147,41445.0,41432.0,0.5]
[1646364245779,0.3,41444.0,41432.0,0.5]
[1646364245979,0.3,41444.0,41426.0,0.33376547]
[1646364246180,0.27565697,41437.0,41427.0,0.367347]
[1646364246380,0.27565697,41437.0,41427.0,0.467347]
[1646364246632,0.27565697,41437.0,41429.0,0.19824587]
[1646364246829,0.27565697,41437.0,41430.0,0.36658577]
[1646364247028,0.18584839,41438.0,41431.0,0.5]
[1646364247328,0.18584839,41438.0,41432.0,0.367149]
[1646364247928,0.3,41437.0,41431.0,0.5]
[1646364248134,0.02413,41435.0,41416.0,0.5]
[1646364248329,0.07233,41434.0,41416.0,0.5]
[1646364248629,0.4648,41433.0,41417.0,0.367138]
[1646364248828,0.1648,41433.0,41423.0,0.15725728]
[1646364249028,0.22592917,41430.0,41424.0,0.367138]
[1646364249235,0.1648,41433.0,41430.0,0.17206876]
[1646364249431,0.0482,41433.0,41430.0,0.17206876]
[1646364249629,0.0482,41433.0,41423.0,0.5]
[1646364249829,0.0482,41433.0,41424.0,0.367138]
[1646364250275,0.0482,41433.0,41427.0,0.27095291]
[1646364250479,0.0482,41433.0,41429.0,0.17964501]
[1646364250678,0.0482,41433.0,41430.0,0.367138]
[1646364250877,0.1888,41437.0,41429.0,0.17964501]
[1646364251079,0.3,41442.0,41430.0,0.367138]
[1646364251278,0.5344,41448.0,41430.0,0.367138]
[1646364251279,0.1859,41441.0,41432.0,0.367138]
[1646364251480,0.28861255,41445.0,41432.0,0.367138]
[1646364251886,0.28861255,41445.0,41439.0,0.19740935]
[1646364252077,0.28861255,41445.0,41440.0,0.367138]
[1646364253081,0.1969,41449.0,41440.0,0.367138]
[1646364253285,0.1131,41452.0,41440.0,0.367138]
[1646364254137,0.1131,41452.0,41449.0,0.20865994]
[1646364254330,0.74670657,41456.0,41449.0,0.20865994]
[1646364254331,0.025,41454.0,41449.0,0.20865994]
[1646364254830,0.025,41454.0,41438.0,0.367138]
[1646364255031,0.19848692,41454.0,41438.0,0.367138]
[1646364255229,0.3,41453.0,41437.0,0.01023971]
[1646364255429,0.025,41454.0,41439.0,0.5]
[1646364255631,0.025,41454.0,41440.0,0.65371163]
[1646364255832,0.20261822,41451.0,41444.0,0.367138]
[1646364256432,0.20261822,41451.0,41447.0,0.367138]
[1646364256632,0.20261822,41451.0,41443.0,0.21496321]
[1646364256832,0.20261822,41451.0,41444.0,0.367138]
[1646364257433,0.1201,41455.0,41444.0,0.367138]
[1646364257630,0.1201,41455.0,41443.0,0.21496321]
[1646364257876,0.19780272,41453.0,41445.0,0.22044655]
[1646364258081,0.3,41452.0,41445.0,0.22044655]
[1646364258277,0.3,41452.0,41443.0,0.21496321]
[1646364258679,0.51019337,41452.0,41443.0,0.21496321]
[1646364258876,0.51019337,41452.0,41444.0,0.367138]
[1646364259277,0.51019337,41452.0,41446.0,0.24339075]
[1646364260479,0.51019337,41452.0,41443.0,0.21496321]
[1646364260777,0.51019337,41452.0,41444.0,0.367138]
[1646364261529,0.51019337,41452.0,41445.0,0.27570368]
[1646364261830,0.4201,41455.0,41446.0,0.367138]
[1646364262029,0.4201,41455.0,41445.0,0.27570368]
[1646364262233,0.4201,41455.0,41446.0,0.367138]
[1646364262430,0.1201,41455.0,41446.0,0.367138]
[1646364262829,0.1201,41455.0,41450.0,0.21756581]
[1646364263029,0.1946,41458.0,41450.0,0.21756581]
[1646364263230,0.5823,41464.0,41450.0,0.21756581]
[1646364263432,0.5823,41464.0,41451.0,0.3]
[1646364263632,0.1182,41464.0,41451.0,0.3]
[1646364263832,0.21252137,41461.0,41450.0,0.21756581]
[1646364264231,0.30811283,41464.0,41457.0,0.18000231]
[1646364264435,0.787,41467.0,41457.0,0.18000231]
[1646364264436,0.05,41467.0,41457.0,0.18000231]
[1646364264632,0.3814,41469.0,41457.0,0.18000231]
[1646364264935,0.1916,41469.0,41457.0,0.18000231]
[1646364265131,0.23346613,41465.0,41458.0,0.25701039]
[1646364265384,0.21526977,41468.0,41459.0,0.367138]
[1646364265582,0.21526977,41468.0,41457.0,0.18000231]
[1646364265983,0.1916,41469.0,41458.0,0.667138]
[1646364266182,0.1916,41469.0,41458.0,0.367138]
[1646364266384,0.1916,41469.0,41458.0,0.667138]
[1646364266685,0.22329633,41464.0,41458.0,0.65387025]
[1646364266883,0.1916,41469.0,41458.0,0.367138]
[1646364267884,0.1916,41469.0,41458.0,0.64122953]
[1646364268084,0.1916,41469.0,41458.0,0.6274251]
[1646364268284,0.1916,41469.0,41458.0,0.367138]
[1646364268785,0.16412174,41467.0,41458.0,0.367138]
[1646364269026,0.1916,41469.0,41458.0,0.367138]
[1646364269429,0.23762758,41466.0,41459.0,0.27339338]
[1646364269629,0.1916,41469.0,41460.0,0.367138]
[1646364269832,0.1916,41469.0,41459.0,0.27339338]
[1646364270030,0.1995267,41468.0,41460.0,0.367138]
[1646364270240,0.1916,41469.0,41460.0,0.367138]
[1646364270432,0.28175469,41471.0,41459.0,0.27339338]
[1646364270632,0.1182,41471.0,41460.0,0.367138]
[1646364270834,0.001,41472.0,41461.0,0.01119084]
[1646364271031,0.001,41472.0,41462.0,0.367138]
[1646364271242,0.001,41472.0,41464.0,0.367138]
[1646364271632,0.001,41472.0,41470.0,0.367138]
[1646364274580,0.001,41477.0,41470.0,0.367138]
[1646364274781,0.001,41477.0,41470.0,0.667138]
[1646364275180,0.001,41477.0,41470.0,0.367138]
[1646364275383,0.001,41477.0,41473.0,0.367138]
[1646364278335,0.18611488,41477.0,41473.0,0.367138]
[1646364278933,0.001,41477.0,41473.0,0.367138]
[1646364279334,0.051,41477.0,41473.0,0.367138]
[1646364279736,0.051,41477.0,41473.0,0.867138]
[1646364280137,0.051,41479.0,41477.0,1.35]
[1646364280390,0.051,41479.0,41478.0,0.367138]
[1646364282286,0.051,41479.0,41478.0,1.167138]
[1646364282686,0.051,41479.0,41478.0,1.267138]
[1646364283093,0.001,41482.0,41481.0,0.367138]
[1646364283293,0.1223,41490.0,41483.0,0.367138]
[1646364283294,0.001,41490.0,41483.0,0.367138]
[1646364283488,0.001,41490.0,41485.0,0.391268]
[1646364284073,0.001,41490.0,41486.0,0.28615454]
[1646364284274,0.001,41490.0,41487.0,0.367138]
[1646364285473,0.001,41490.0,41487.0,0.867138]
[1646364285675,0.001,41490.0,41487.0,1.167138]
[1646364285871,0.001,41490.0,41487.0,0.867138]
[1646364286273,0.001,41490.0,41487.0,1.167138]
[1646364286472,0.001,41490.0,41487.0,0.867138]
[1646364286673,0.001,41490.0,41487.0,1.167138]
[1646364286872,0.001,41490.0,41487.0,0.867138]
[1646364287273,0.001,41490.0,41487.0,1.167138]
[1646364287673,0.001,41490.0,41487.0,0.867138]
[1646364287883,0.001,41490.0,41487.0,1.167138]
[1646364290285,0.001,41490.0,41487.0,1.191268]
[1646364290483,0.001,41490.0,41487.0,1.167138]
[1646364291633,0.001,41490.0,41488.0,0.1]
[1646364291836,0.001,41490.0,41489.0,0.65]
[1646364292332,0.001,41490.0,41489.0,0.3]
[1646364292532,0.001,41490.0,41489.0,0.8]
[1646364293333,0.001,41490.0,41489.0,0.5]
[1646364294338,0.001,41490.0,41489.0,0.92413]
[1646364294736,0.001,41490.0,41489.0,0.9]
[1646364295385,0.001,41490.0,41489.0,0.6]
[1646364295986,0.001,41490.0,41489.0,1.266722]
[1646364296194,0.001,41490.0,41489.0,0.966722]
[1646364296586,0.001,41490.0,41489.0,1.266722]
[1646364296988,0.001,41490.0,41489.0,0.966722]
[1646364298188,0.001,41490.0,41489.0,1.266722]
[1646364299231,0.001,41490.0,41489.0,1.166722]
[1646364299834,0.001,41490.0,41489.0,1.666722]
[1646364302033,0.001,41490.0,41489.0,1.566722]
[1646364302234,0.001,41490.0,41489.0,1.366722]
[1646364303283,0.0002,41494.0,41490.0,0.866722]
[1646364304085,0.0002,41494.0,41491.0,0.15588843]
[1646364304283,0.0002,41494.0,41492.0,0.866722]
[1646364308035,0.0002,41494.0,41493.0,0.3]
[1646364308237,0.0002,41494.0,41493.0,0.366722]
[1646364311583,0.0002,41494.0,41493.0,0.466722]
[1646364311790,0.0002,41494.0,41493.0,0.766722]
[1646364312687,0.1167,41501.0,41498.0,0.17119964]
[1646364312886,0.001,41503.0,41499.0,0.366722]
[1646364314730,0.23457558,41505.0,41499.0,0.366722]
[1646364314930,0.123,41508.0,41499.0,0.60969312]
[1646364315130,0.123,41508.0,41499.0,0.24297112]
[1646364315929,0.28389012,41508.0,41499.0,0.24297112]
[1646364316131,0.25292242,41506.0,41494.0,0.5]
[1646364316334,0.25292242,41506.0,41495.0,0.366722]
[1646364316630,0.123,41508.0,41495.0,0.366722]
[1646364317885,0.123,41508.0,41502.0,0.21075698]
[1646364318288,0.001,41509.0,41503.0,0.366722]
[1646364318486,0.001,41509.0,41502.0,0.21075698]
[1646364319088,0.001,41509.0,41503.0,0.366722]
[1646364319287,0.001,41509.0,41502.0,0.21075698]
[1646364319486,0.001,41509.0,41503.0,0.366722]
[1646364319690,0.001,41509.0,41502.0,0.21075698]
[1646364319886,0.001,41509.0,41503.0,0.366722]
[1646364320787,0.001,41509.0,41502.0,0.21075698]
[1646364321188,0.17650647,41509.0,41502.0,0.21075698]
[1646364321632,0.001,41509.0,41502.0,0.21075698]
[1646364322431,0.001,41509.0,41504.0,0.24140697]
[1646364322631,0.001,41509.0,41502.0,0.21075698]
[1646364322830,0.001,41509.0,41503.0,0.366722]
[1646364323531,0.001,41509.0,41503.0,0.63806989]
[1646364323731,0.001,41509.0,41503.0,0.366722]
[1646364323932,0.001,41509.0,41503.0,0.666722]
[1646364324133,0.001,41509.0,41503.0,0.366722]
[1646364324734,0.001,41509.0,41503.0,0.866722]
[1646364324932,0.001,41509.0,41503.0,1.11744706]
[1646364326181,0.001,41509.0,41503.0,1.41744706]
[1646364327185,0.001,41509.0,41503.0,1.11744706]
[1646364328383,0.001,41509.0,41503.0,0.866722]
[1646364329243,0.001,41509.0,41503.0,1.11427212]
[1646364329644,0.001,41509.0,41503.0,0.866722]
[1646364331244,0.001,41509.0,41505.0,0.20664904]
[1646364331445,0.001,41509.0,41506.0,0.366722]
[1646364331647,0.001,41509.0,41506.0,0.866722]
[1646364335385,0.15945542,41514.0,41506.0,0.866722]
[1646364335584,0.15945542,41514.0,41506.0,0.5]
[1646364336736,0.15945542,41514.0,41507.0,0.366722]
[1646364336936,0.15945542,41514.0,41506.0,0.5]
[1646364337136,0.15945542,41514.0,41507.0,0.366722]
[1646364337340,0.15945542,41514.0,41506.0,0.5]
[1646364337540,0.17202179,41513.0,41506.0,0.5]
[1646364337742,0.15945542,41514.0,41506.0,0.5]
[1646364337942,0.001,41514.0,41507.0,0.366722]
[1646364338141,0.001,41514.0,41508.0,0.8]
[1646364338342,0.001,41514.0,41509.0,0.366722]
[1646364339139,0.001,41514.0,41511.0,0.866722]
[1646364340040,0.001,41514.0,41513.0,0.366722]
[1646364340304,0.001,41514.0,41513.0,0.866722]
[1646364340689,0.001,41514.0,41513.0,0.5]
[1646364341788,0.001,41514.0,41513.0,0.49999622]
[1646364342688,0.001,41514.0,41511.0,0.78717983]
[1646364343090,0.001,41514.0,41513.0,0.366722]
[1646364343289,0.001,41514.0,41512.0,0.366722]
[1646364345337,0.001,41514.0,41513.0,0.5666388]
[1646364345837,0.001,41514.0,41513.0,0.8666388]
[1646364346038,0.001,41514.0,41513.0,0.5666388]
[1646364346240,0.001,41514.0,41513.0,0.9666388]
[1646364346441,0.001,41521.0,41514.0,1.32413]
[1646364346641,0.001,41521.0,41514.0,1.690852]
[1646364346839,0.001,41521.0,41515.0,0.12413]
[1646364347040,0.001,41521.0,41516.0,0.678762]
[1646364347240,0.001,41521.0,41517.0,0.12413]
[1646364347439,0.001,41521.0,41519.0,0.25747257]
[1646364347641,0.001,41521.0,41520.0,0.54271648]
[1646364347893,0.3174,41532.0,41521.0,1.3]
[1646364348094,0.195,41532.0,41522.0,0.666722]
[1646364348288,0.195,41532.0,41522.0,0.766722]
[1646364348289,0.001,41532.0,41522.0,0.766722]
[1646364348689,0.001,41532.0,41530.0,0.26001155]
[1646364348889,0.001,41532.0,41531.0,0.366722]
[1646364349392,0.420138,41532.0,41523.0,0.5]
[1646364349593,0.569138,41531.0,41523.0,0.5]
[1646364349795,0.15,41529.0,41523.0,0.5]
[1646364349994,0.15,41529.0,41511.0,0.1867]
[1646364349995,0.0011,41517.0,41511.0,0.1867]
[1646364350192,0.0011,41517.0,41512.0,0.57151516]
[1646364350391,0.0011,41517.0,41516.0,0.64698738]
[1646364356390,0.0011,41517.0,41516.0,0.366722]
[1646364361341,0.17897953,41518.0,41517.0,0.366722]
[1646364361742,0.37891428,41518.0,41517.0,0.366722]
[1646364362140,0.19993475,41520.0,41517.0,0.366722]
[1646364363190,0.19993475,41518.0,41517.0,0.366722]
[1646364364190,0.43948003,41518.0,41517.0,0.366722]
[1646364364794,0.73948003,41518.0,41508.0,0.01204]
[1646364364998,0.73948003,41518.0,41499.0,0.1861]
[1646364364999,0.19993475,41511.0,41499.0,0.1861]
[1646364365195,0.19993475,41511.0,41507.0,0.366722]
[1646364365393,0.19993475,41511.0,41503.0,0.366722]
[1646364365692,0.15434576,41512.0,41503.0,0.56242544]
[1646364365892,0.49993475,41511.0,41503.0,0.56242544]
[1646364366095,0.19993475,41511.0,41503.0,0.56242544]
[1646364366298,0.49993475,41511.0,41503.0,0.56242544]
[1646364366542,0.41967062,41511.0,41503.0,0.56242544]
[1646364367242,0.41967062,41511.0,41503.0,0.366722]
[1646364367443,0.3,41510.0,41503.0,0.366722]
[1646364368044,0.41967062,41511.0,41503.0,0.366722]
[1646364368645,0.3,41510.0,41503.0,0.366722]
[1646364368848,0.19993475,41508.0,41503.0,0.366722]
[1646364370989,0.19993475,41508.0,41504.0,0.25950382]
[1646364371190,0.19993475,41508.0,41505.0,0.36597817]
[1646364371392,0.19993475,41508.0,41505.0,0.36526109]
[1646364371687,0.19993475,41508.0,41505.0,0.36450181]
[1646364372091,0.19993475,41509.0,41505.0,0.36450181]
[1646364373189,0.21586821,41511.0,41505.0,0.36450181]
[1646364373390,0.19993475,41509.0,41505.0,0.36450181]
[1646364373590,0.19993475,41509.0,41501.0,0.18712194]
[1646364373792,0.51586821,41511.0,41502.0,0.366588]
[1646364374042,0.19993475,41509.0,41502.0,0.366588]
[1646364374937,0.2642255,41504.0,41502.0,0.366588]
[1646364376144,0.68295251,41503.0,41495.0,0.1175]
[1646364376341,0.68295251,41503.0,41496.0,0.366588]
[1646364376542,0.68295251,41503.0,41497.0,0.366588]
[1646364376741,0.68295251,41503.0,41495.0,0.366588]
[1646364376939,0.68295251,41503.0,41494.0,0.366588]
[1646364377140,0.21156945,41496.0,41494.0,0.366588]
[1646364377341,0.68295251,41503.0,41495.0,0.1]
[1646364377640,0.75480944,41503.0,41495.0,0.1]
[1646364377892,0.295509,41502.0,41479.0,0.01662693]
[1646364378097,0.06912768,41490.0,41472.0,0.20004999]
[1646364378296,0.06912768,41490.0,41472.0,0.001]
[1646364378297,0.19993475,41485.0,41472.0,0.001]
[1646364378495,0.571379,41484.0,41472.0,0.001]
[1646364378691,0.7649616,41484.0,41472.0,0.001]
[1646364378891,0.271379,41484.0,41473.0,0.19135827]
[1646364379095,0.64181601,41485.0,41473.0,0.19135827]
[1646364379292,0.0482,41487.0,41473.0,0.19135827]
[1646364379491,0.19993475,41490.0,41474.0,0.28765238]
[1646364379492,0.001307,41489.0,41474.0,0.28765238]
[1646364379690,0.0482,41490.0,41474.0,0.28735878]
[1646364379891,0.0482,41490.0,41474.0,0.28774179]
[1646364380090,0.0482,41490.0,41484.0,0.666588]
[1646364380294,0.0482,41490.0,41473.0,0.34135827]
[1646364380295,0.0482,41490.0,41486.0,0.366588]
[1646364381394,0.0482,41490.0,41487.0,0.22249412]
[1646364381642,0.0482,41490.0,41488.0,0.366588]
[1646364381842,0.2647379,41494.0,41482.0,0.3]
[1646364382038,0.46865449,41494.0,41484.0,0.466588]
[1646364382338,0.2647379,41494.0,41484.0,0.466588]
[1646364382542,0.2647379,41494.0,41487.0,0.19358471]
[1646364382738,0.3,41493.0,41487.0,0.19358471]
[1646364382939,0.3,41493.0,41488.0,0.366588]
[1646364383138,0.50191404,41493.0,41488.0,0.366588]
[1646364383337,0.3,41493.0,41479.0,0.1]
[1646364383538,0.3,41493.0,41484.0,0.366588]
[1646364383739,0.2647379,41494.0,41484.0,0.366588]
[1646364383938,0.3,41493.0,41485.0,0.22615323]
[1646364384138,0.3,41493.0,41486.0,0.366588]
[1646364384342,0.41878447,41494.0,41486.0,0.16544897]
[1646364384343,0.60064829,41494.0,41486.0,0.16544897]
[1646364384739,0.3,41493.0,41486.0,0.16544897]
[1646364384939,0.3,41493.0,41479.0,0.3]
[1646364385392,0.3,41493.0,41479.0,0.2]
[1646364385588,0.45404657,41493.0,41479.0,0.2]
[1646364385789,0.2726769,41487.0,41480.0,0.23159669]
[1646364385989,0.1593752,41486.0,41484.0,0.366588]
[1646364386191,0.3,41493.0,41484.0,0.366588]
[1646364386489,0.3,41493.0,41480.0,0.23159669]
[1646364386893,0.18186382,41494.0,41480.0,0.23159669]
[1646364387088,0.3,41493.0,41480.0,0.23159669]
[1646364387289,0.28092674,41489.0,41484.0,0.366588]
[1646364387688,0.28092674,41489.0,41480.0,0.23159669]
[1646364388088,0.58092674,41489.0,41478.0,0.20347336]
[1646364389036,0.28092674,41489.0,41478.0,0.20347336]
[1646364389639,0.58092674,41489.0,41478.0,0.20347336]
[1646364389838,0.58092674,41489.0,41474.0,0.1]
[1646364390239,0.58092674,41489.0,41474.0,0.33501091]
[1646364390443,0.271379,41486.0,41474.0,0.1]
[1646364390640,0.3,41485.0,41474.0,0.1]
[1646364391440,0.3,41485.0,41475.0,0.25008546]
[1646364391640,0.3,41485.0,41474.0,0.1]
[1646364392641,0.271379,41484.0,41474.0,0.1]
[1646364392906,0.3,41485.0,41472.0,0.001]
[1646364393311,0.26172038,41483.0,41472.0,0.001]
[1646364393506,0.20271539,41474.0,41472.0,0.001]
[1646364393702,0.4982,41482.0,41472.0,0.001]